Cogmind - Beta 16 @@@ ROGUE MODE // 2025.12.06 @ 00:52:57 Player: Red Box Result: Destroyed by Explosive Trap Performance ------------- Evolutions (0) 0 Regions Visited (2) 400 Robots Destroyed (34) 170 Value Destroyed (675) 675 Prototype IDs (1) 20 Alien Tech Used (0) 0 Bonus (0) 0 TOTAL SCORE: 1265 Bonus ------- None Cogmind --------- Core Integrity 0/250 Matter 258/300 Energy 90/100 System Corruption 1% Temperature Cool (1) Movement Treading (240) Ox1 Location -10/Mines Parts ------- > --- POWER (1) -------- (None) > --- PROPULSION (2) --- Light Treads > --- UTILITY (2) ------ Large Storage Unit Trap Extractor (2/4 Explosive) > --- WEAPON (2) ------- Heavy Assault Rifle > --- INVENTORY (15) --- Cooling System High-capacity Storage Unit Trap Extractor (0/4) Bomb Drone Bay EM Shotgun EM Shotgun EM Shotgun EM Shotgun Heavy Assault Rifle Datajack Mining Laser Hammer Peak State ------------ > --- POWER ------------ Ion Engine > --- PROPULSION ------- Light Treads Wheel > --- UTILITY ---------- Cooling System Large Storage Unit > --- WEAPON ----------- Heavy Assault Rifle Heavy Assault Rifle > --- INVENTORY -------- Light Treads Light Treads High-capacity Storage Unit Experimental Sensor Array Trap Extractor Trap Extractor EM Shotgun EM Shotgun EM Shotgun EM Shotgun Heavy Assault Rifle Heavy Assault Rifle Datajack Mining Laser Hammer [Rating: 13] Favorites ----------- Power Light Ion Engine Engine Light Ion Engine Propulsion Aluminum Leg Treads Light Treads Leg Aluminum Leg Wheel Wheel Utility Large Storage Unit Device Cooling System Storage Large Storage Unit Hackware Hacking Suite Weapon Heavy Assault Rifle Energy Gun EM Pulse Gun Energy Cannon Beam Cannon Ballistic Gun Heavy Assault Rifle Ballistic Cannon Light Cannon Special Weapon Mining Laser Impact Weapon Hammer Special Melee Weapon Datajack Build | -11 -10 -10 ------- Run | Yrd Mat Min Slots Evolved . | . . . Power . | . . . Propulsion . | . . . Utility . | . . . Weapon . | . . . Parts Attached 34 | 7 24 3 Power 3 | 1 2 . Engine 3 | 1 2 . Core . | . . . Reactor . | . . . Propulsion 7 | 2 4 1 Treads 3 | . 2 1 Leg 3 | 2 1 . Wheel 1 | . 1 . Hover . | . . . Flight . | . . . Utility 10 | 2 8 . Device 6 | 1 5 . Storage 3 | 1 2 . Processor . | . . . Hackware 1 | . 1 . Protection . | . . . Artifact . | . . . Weapon 14 | 2 10 2 Energy Gun 3 | . 2 1 Energy Cannon 2 | . 2 . Ballistic Gun 5 | 2 2 1 Ballistic Cannon 1 | . 1 . Launcher . | . . . Special Weapon 1 | . 1 . Impact Weapon 1 | . 1 . Slashing Weapon . | . . . Piercing Weapon . | . . . Special Melee Weapon 1 | . 1 . Unidentified Prototypes 1 | . . 1 Parts Lost 9 | . 3 6 Power 1 | . . 1 Propulsion 2 | . . 2 Utility 2 | . 1 1 Weapon 4 | . 2 2 Highest Loss Streak 2 | . 2 2 To Critical Strikes . | . . . Average Backups 11 | 6 11 13 Power . | . . . Propulsion 2 | 3 3 1 Utility 1 | . 1 3 Weapon 6 | 1 6 7 Tool/Special . | . . . Unused Backups 11 | . 4 7 Power . | . . . Propulsion 1 | . 1 . Utility 3 | . . 3 Weapon 7 | . 3 4 Tool/Special . | . . . Average Slot Usage (%) 94 | . 95 94 Engine 12 | . 14 9 Treads 5 | . 2 13 Leg 17 | . 23 . Wheel 5 | . 2 13 Device 10 | . 9 14 Storage 14 | . 14 14 Hackware 3 | . 4 . Energy Gun 6 | . 7 . Energy Cannon 1 | . 1 . Ballistic Gun 11 | . 7 27 Ballistic Cannon 1 | . 1 . Impact Weapon 1 | . 1 . Special Melee Weapon 2 | . 3 . Peak Build Rating 13 | 9 12 13 Average Rating 9 | 5 9 12 On Entrance 7 | . 9 12 Avg Prop Armor Cover (%) 10 | . 11 9 Naked Turns . | . . . Heaviest Build 33 | 13 33 33 Greatest Support 20 | 20 20 20 Greatest Overweight (x) 3 | . 3 3 Average Overweight (x) 1 | . . 2 Largest Inventory Capacity 15 | 8 15 15 Average Capacity 12 | 7 12 15 Most Carried 15 | 7 15 15 Average Carried 11 | 6 11 14 Final Capacity 15 | 8 15 15 Final Carried 15 | 7 15 13 Class Distribution -------------------- 72% | Mutant 27% | Trapper-Mutant Dominant Class ---------------- Mutant | -10/Materials Trapper-Mutant | -10/Mines Resources | -11 -10 -10 ----------- Run | Yrd Mat Min Matter Collected 1023 | 324 519 180 Remotely . | . . . Salvage Created 947 | 145 669 133 Parts 61 | 20 36 5 Haulers Intercepted 2 | . 2 . Recyclers Shooed . | . . . Parts Field Recycled . | . . . Retrieved Matter . | . . . Parts Self-Destructed . | . . . Prevented . | . . . Parts Restored . | . . . Kills | -11 -10 -10 ------- Run | Yrd Mat Min Combat Hostiles Destroyed 24 | . 16 8 Guns 20 | . 12 8 Cannons 3 | . 3 . Classes Destroyed 9 | 1 6 2 Tunneler 7 | 7 . . Hauler 2 | . 2 . Recycler 1 | . 1 . Operator 1 | . 1 . Watcher 3 | . 3 . Swarmer 9 | . 9 . Grunt 9 | . 7 2 Demolisher 2 | . . 2 Assembled 4 | . . 4 Best Kill Streak 3 | 3 3 2 Combat Bots Only 3 | . 3 2 Max Kills in Single Turn 2 | 1 2 1 Gunslinging 1 | . 1 . Exploded . | . . . Melee . | . . . Uniques/NPCs Destroyed . | . . . Combat | -11 -10 -10 -------- Run | Yrd Mat Min Hostile Shots Fired 146 | . 103 43 Missed 47 | . 34 13 Hits 99 | . 69 30 Melee 2 | . . 2 Projectile 97 | . 69 28 AOE 11 | . . 11 Critical Strikes 3 | . 2 1 Damage Taken 1387 | . 638 749 Core 272 | . 111 161 Absorbed by Shields . | . . . Regen/Repaired (Parts) 65 | . 65 . Core Remaining (%) 100 | 100 . . Volleys Fired 101 | 9 67 25 Largest 2 | 2 2 2 Hottest 100 | 40 100 68 Shots Fired 196 | 18 128 50 Gun 160 | 18 92 50 Cannon 30 | . 30 . Launcher . | . . . Special 6 | . 6 . Kinetic 116 | 18 49 49 Thermal 19 | . 19 . Explosive . | . . . Electromagnetic 61 | . 60 1 Robot Hit Streak 7 | 5 5 7 Robot Miss Streak 7 | 1 7 2 Penetration Max . | . . . Secondary Targets 1 | . 1 . Max Gunslinging Chain 1 | . 1 . Shots Hit Robots 100 | 9 60 31 Core Hits 44 | 7 22 15 Critical Kills 1 | . 1 . Critical Parts Destroyed . | . . . Critical Strikes 2 | . 2 . Destroy 1 | . 1 . Blast 1 | . 1 . Melee Attacks 22 | . 22 . Impact 21 | . 21 . Slashing . | . . . Piercing . | . . . Sneak Attacks 1 | . 1 . Combat Hostiles . | . . . Follow-up Attacks . | . . . Damage Inflicted 1807 | 118 1211 478 Guns 1258 | 118 662 478 Cannons 344 | . 344 . Explosions 205 | . 205 . Melee . | . . . Ramming . | . . . Kinetic 1008 | 118 419 471 Thermal 192 | . 192 . Explosive 157 | . 157 . Electromagnetic 450 | . 443 7 Impact . | . . . Slashing . | . . . Piercing . | . . . Highest Corruption 1 | . . 1 Average Corruption 1 | . . 1 Corruption Purged . | . . . Corruption Blocked . | . . . Effects 2 | . . 2 Message Errors 1 | . . 1 Energy Discharges 1 | . . 1 Overload Shots . | . . . Overflow Damage 48 | . 48 . Projectiles 6 | . 6 . Explosions 42 | . 42 . Melee . | . . . Knockbacks 3 | . 3 . Impact . | . . . Kinetic 3 | . 3 . Secondary . | . . . Self-Inflicted Damage . | . . . Shots . | . . . Rammed . | . . . Targets Rammed . | . . . Kicked . | . . . Crushed . | . . . Highest Temperature 226 | . 226 . Average Temperature 60 | . 60 . Received Heat Transfer 135 | . 102 33 Siege Activations . | . . . Martial Activations . | . . . Shielding Activations . | . . . Robots Disrupted . | . . . Combat Hostiles . | . . . Robots Corrupted 1 | . 1 . Combat Hostiles 1 | . 1 . Parts Fried 2 | . 2 . Impact Corruptions . | . . . Robots Melted . | . . . Combat Hostiles . | . . . Parts Melted . | . . . Heat Transferred 346 | . 346 . Parts Sabotaged . | . . . Parts Stolen . | . . . Parts Stripped . | . . . Power Chain Reactions 1 | . 1 . Alert | -11 -10 -10 ------- Run | Yrd Mat Min Maximum Alert Level . | . . . Low Security (%) 100 | 100 100 100 Level 1 . | . . . Level 2 . | . . . Level 3 . | . . . Level 4 . | . . . Level 5 . | . . . High Security . | . . . Max Security . | . . . Peak Influence 122 | 10 122 40 Initial 6 | . 6 . Average 24 | 2 32 4 Influence Increases 706 | 35 571 100 Destroy 0b10 Robot/C 400 | . 320 80 Destroy 0b10 Robot/NC 65 | 35 30 . Destroy Leader 100 | . 80 20 Successful Hack 56 | . 56 . Disable Machine 60 | . 60 . Destroy Structure 10 | . 10 . Lose Combat Pursuer 15 | . 15 . Influence Decreases 706 | 25 581 100 Entered New Map 4 | . 4 . Time Decay 650 | 25 547 78 Lost Part 52 | . 30 22 Squads Dispatched 3 | . 3 . Investigation 3 | . 3 . Extermination . | . . . Reinforcement . | . . . Assault . | . . . Garrison . | . . . Intercept . | . . . Searches Triggered . | . . . Construction Impeded . | . . . Haulers Reinforced . | . . . Active Scanning Responses . | . . . Cargo Convoy Interrupts . | . . . Stealth | -11 -10 -10 --------- Run | Yrd Mat Min Distress Signals . | . . . Communications Jammed . | . . . Distress Signals . | . . . Times Spotted 40 | . 26 14 Peak Tracking Total 5 | . 4 5 Tactical Retreats 1 | . 1 . Traps | -11 -10 -10 ------- Run | Yrd Mat Min Traps Triggered . | . . . Indirectly . | . . . Trap Hack Attempts 48 | . 48 . Triggered . | . . . Disarmed 1 | . 1 . Reprogrammed 8 | . 8 . Reused 4 | . . 4 Traps Extracted 8 | . 8 . Installed 6 | . . 6 Triggered . | . . . Most Traps Carried 8 | . 8 8 Machines | -11 -10 -10 ---------- Run | Yrd Mat Min Machines Disabled 4 | . 4 . Max in Single Turn 1 | . 1 . Machines Repaired . | . . . Machines Dismantled . | . . . Machines Sabotaged . | . . . Overloaded Fab Kills . | . . . Hacking | -11 -10 -10 --------- Run | Yrd Mat Min Machines Accessed 12 | . 11 1 Terminals 8 | . 8 . Fabricators . | . . . Repair Stations 1 | . 1 . Recycling Units 2 | . 2 . Scanalyzers . | . . . Garrison Access . | . . . Total Hacks 39 | . 38 1 Successful 18 | . 17 1 Failed 21 | . 21 . Catastrophic 3 | . 3 . Database Lockouts . | . . . Manual 28 | . 28 . Terminals 28 | . 28 . Fabricators . | . . . Repair Stations 2 | . 2 . Recycling Units 8 | . 8 . Scanalyzers . | . . . Garrison Access . | . . . Terminal Hacks 4 | . 3 1 Robot Analysis 2 | . 2 . Open Door 1 | . . 1 Terminal Index 1 | . 1 . Fabricator Hacks . | . . . Repair Station Hacks 2 | . 2 . Scan Component 1 | . 1 . Repair 1 | . 1 . Recycling Unit Hacks 1 | . 1 . Retrieve Components 1 | . 1 . Scanalyzer . | . . . Garrison Access Hacks . | . . . Unauthorized Hacks 11 | . 11 . Terminals 10 | . 10 . Assimilate 4 | . 4 . Operators 1 | . 1 . Skim 5 | . 5 . Fabricators . | . . . Repair Stations . | . . . Recycling Units 1 | . 1 . Mask 1 | . 1 . Scanalyzers . | . . . Garrison Access . | . . . Data Cores Recovered . | . . . Used . | . . . Hacking Detections 10 | . 10 . Full Trace Events 5 | . 5 . Feedback Events . | . . . Feedback Blocked . | . . . Robot Schematics Acquired . | . . . Robots Built . | . . . Authchips . | . . . Time . | . . . Total Robot Build Rating . | . . . Part Schematics Acquired . | . . . Parts Built . | . . . Authchips . | . . . Time . | . . . Total Part Build Rating . | . . . Part Studies Acquired . | . . . Parts Repaired 1 | . 1 . Time 26 | . 26 . Parts Recycled . | . . . Recycled Matter . | . . . Retrieved Matter . | . . . Retrieved Components 8 | . 8 . Parts Scanalyzed . | . . . Part Schematics Acquired . | . . . Parts Damaged . | . . . Bothacking | -11 -10 -10 ------------ Run | Yrd Mat Min Used RIF Installer . | . . . Robots Hacked 1 | . 1 . Non-combat 1 | . 1 . Combat . | . . . Robot Hacks Applied 1 | . 1 . parse_system 1 | . 1 . Relay Couplers Released . | . . . Fabnet Peak Effective % . | . . . Robots Rewired . | . . . Allies Hacked . | . . . Hacks Repelled . | . . . Allies | -11 -10 -10 -------- Run | Yrd Mat Min Total Allies 1 | . 1 . Largest Group 1 | . 1 . Highest-Rated Group 10 | . 10 . Highest-Rated Ally 10 | . 10 . Total Orders 6 | . 6 . STAY 3 | . 3 . FOLLOW 3 | . 3 . Ally Attacks . | . . . Total Damage . | . . . Kills . | . . . Allies Corrupted . | . . . Allies Melted . | . . . Intel | -11 -10 -10 ------- Run | Yrd Mat Min Active Infowar (turns) 623 | 2 621 . Terrain 623 | 2 621 . Robot Analysis Total 2 | . 2 . Derelict Logs Recovered . | . . . Drone Launches . | . . . Drone Recoveries . | . . . Exploration | -11 -10 -10 ------------- Run | Yrd Mat Min Turns Passed 3199 | 213 2286 700 Spaces Moved 1767 | 117 1280 370 Core 4 | 4 . . Treads 128 | . . 128 Legs 1137 | 113 1024 . Wheels 498 | . 256 242 Hover . | . . . Flight . | . . . Fastest Speed 50 | 50 120 110 Average Speed 141 | 117 138 161 Slowest Speed 240 | 120 190 240 Overloaded Moves . | . . . Propulsion Burnouts . | . . . Robots Hopped . | . . . Potential Cave-ins . | . . . Cave-ins Triggered . | . . . Exploration Rate (%) 55 | 5 97 65 Regions Visited 2 Branch Regions 1 Pre-discovered Areas 2 | . 2 . Known Exits Taken 1 | . 1 . Unknown Exits Taken 1 | 1 . . Scrap Searched 1 | . . 1 Spaces Dug 6 | . 6 . Terrain Destroyed 8 | . 8 . Melee . | . . . Projectile 6 | . 6 . AOE 2 | . 2 . Terrain Rammed . | . . . Walls Destroyed . | . . . Machines Disabled . | . . . Actions | -11 -10 -10 --------- Run | Yrd Mat Min Total 2212 | 171 1616 425 Wait 170 | 32 128 10 Move 1765 | 116 1279 370 Hop . | . . . Pick Up 31 | 7 21 3 Fast Attach 13 | 7 6 . Attach 8 | . 5 3 Detach . | . . . Swap 25 | . 20 5 Drop 23 | . 20 3 Fire 101 | 9 67 25 Melee 22 | . 22 . Ram . | . . . Kick . | . . . Crush . | . . . Escape Stasis . | . . . Rewire . | . . . Trap 54 | . 48 6 Miscellaneous . | . . . Route ------- -11/Scrapyard -10/Materials (discovered 6 exits: *Mat x3 / *Min x2 / *Sub) -10/Mines (discovered 2 exits: *Mat x2) History --------- Turn | Location | Event 7 | -11/Scrapyard | Discovered new exit (range 16) 214 | -11/Scrapyard | Entered Materials 306 | -10/Materials | Build established: Mutant 497 | -10/Materials | Identified exit to Mines 497 | -10/Materials | Identified exit to Materials 529 | -10/Materials | Loaded intel: 8 terminal locations 553 | -10/Materials | Learned location of 2 exits from Subcaves 575 | -10/Materials | Learned location of Mines (-9) 592 | -10/Materials | Identified exit to Subcaves 592 | -10/Materials | Learned location of 1 exit from Materials 1899 | -10/Materials | Repaired Aluminum Leg 2374 | -10/Materials | Build established: Trapper-Mutant 2500 | -10/Materials | Entered Mines 2546 | -10/Mines | Found a damaged Exp. Sensor Array with a note attached 2549 | -10/Mines | Found Prototype Device 2568 | -10/Mines | Identified Exp. Sensor Array 2630 | -10/Mines | Discovered exit to Materials (range 6) 2678 | -10/Mines | Found the Drone Emporium 2685 | -10/Mines | Found Prototype Device 2902 | -10/Mines | Found a hidden stash of uninstalled traps 2915 | -10/Mines | Assembled infested the area 2952 | -10/Mines | Core integrity fell below 50% 3086 | -10/Mines | Core integrity fell below 20% 3200 | -10/Mines | Destroyed by Explosive Trap Last Messages --------------- 03107_ Acquired 17 matter. 03136_ System corrupted: Energy discharge (-40). 03150_ as-87970 destroyed. 03162_ as-91721 destroyed. 03163_ :RT8VPC<1KD8PZDJGKYFJ 03165_ Acquired 5 matter. 03170_ Acquired 11 matter. 03180_ Acquired 27 matter. 03186_ Acquired 10 matter. 03195_ Trap Extractor dropped Explosive Trap. 03195_ Installed Explosive Trap. 03196_ The unstable cave ceiling collapses. 03197_ as-18724 triggered Explosive Trap. 03197_ An explosion rips through the floor. 03197_ Hvy. Assault Rifle destroyed. 03199_ Trap Extractor dropped Explosive Trap. 03199_ Wheel destroyed. 03199_ Installed Explosive Trap. 03200_ as-70150 triggered Explosive Trap. 03200_ An explosion rips through the floor. Map ----- +----------------------------------------------------+ | ????????# #?????????????# ### ##?????????? | | ????????# ##????####????# #?# < ####??????????? | | ????????# #???## ##???# #?## ##?????????????? | | ????????# ^ #??## & #???# #??####??????????????? | | ????????# #### & & #???# #????????????????????? | | ???????## ## && #???# #????#########???????? | | ??????## ##???# #????# #???????? | | ?????## #????# ###### #???????? | | ????## ##???# % """ #???????? | | ????# #??## ### ## """ #???????? | | ###?# #??# #?# ## " " #???????? | | ## ### ##??# #?# ## #???????? | | ## ^ ## #???# ###?# ## #???????? | | ## ##### #???# ## #???????? | | ### #??## ##########???##### | | ??## # ## #?## ### ##?????## # | | ???# ########## #######?# ##???## | | ??# #????????## #???????# ##?## | | ??# ?????????# #######?# ### | | ??## #???????## a #### | | ???### #???????# ####a ## # | | ?????# #??????# #??# ## ##### | | ?????# #??????# #??# a #### ##???? | | ?????# #??????## ##??# a # #??## #????? | | ?????# #???????####???# a # #???## ##????? | | ?????? #???????????#### @ # #????## ##?????? | | ?????? #??########## # ## #####?# ##??????? | | ??????#### ! | # #### #???????? | | ????? =* #?## #???????? | | ????? ####### ##?## ##???????? | | ??????????????????## # # ######????????? | | ????????????????# #### ##?????????? | | ????????????????#g #??## ##????????? | | ????????????????#g #???## ##???????? | | ????????????????#### #????## ## #???????? | | ???????????????????## ##?????###### #???????? | | ????????????????????####???????????# ##??????? | | ??????????????????????????????????## ##?????? | | ??????????????????????????????????# """ ##????? | | ?????????????????????????????????## """ ###??? | | ???????????????????????????????### """ ##?? | | ???????????????????????????????# ##? | | ??????????????????????????????# #? | | ?????????????????????????????# #### # | | ?????????????????????????????# #???## # | | ?????????????????????????????## #?????###### ## | | ??????????????????????????????###????????????####? | | ?????????????????????????????????????????????????? | | ?????????????????????????????????????????????????? | | ?????????????????????????????????????????????????? | +----------------------------------------------------+ Best States ------------- Heat Dissipation 47 Energy Generation 10 Energy Capacity 250 Matter Stores 300 Matter Capacity 300 Sight Range 16 Terrain Scan Range 16 Terrain Scan Density 10 Evasion (%) 55 Recoil Reduction 1 Offensive Hacking 10 Trap Extractor Capacity 4 Item Schematics ----------------- None Robot Schematics ------------------ None Fabricated ------------ Nothing Repaired ---------- Aluminum Leg | 27% | -10/Materials Studied --------- None Alien Tech Used ----------------- None Achievements -------------- None Challenges ------------ None Game ------ Seed SupersonicSlugSegregator Manual? 0 Play Time 00:21:02 Cumulative 774.8 hours Start 2025.12.06 @ 00:32:14 End 2025.12.06 @ 00:52:57 Sessions 1 Manual Loads 0 Difficulty Rogue Special Mode None Game No. 536 Rogue 536 Adventurer 0 Explorer 0 Win Type - Total 1 Types 1/0/0/0/0/0/0/0/0/0 Lore% 76 Gallery% 70 Achievement% 50 Wizard Run 0 Options --------- Layout 1 ASCII 0 Keyboard 0 Movement Mouse Keybinds 0 Fullscreen 1 Font 20/SmallcapsGlow Map View 54x42 Zoom Use 0% Tactical HUD 1 Map Filters NONE Filters NONE Steam 1 RUN: 423fd36a-02e4-429f-ab28-4fa3dd25e99c